[Event "46th GRE-chT Premier 2018"]
[Site "Rio Achaia"]
[Date "2018.07.12"]
[Round "4"]
[White "Skiadopoulou, Afroditi-Lelouda"]
[Black "Isari, Angeliki"]
[Result "0-1"]
[ECO "B23"]
[WhiteElo "1491"]
[BlackElo "1153"]
[Annotator "NA"]
[PlyCount "50"]
[EventDate "2018.07.10"]
[EventType "team-tourn"]
[EventCountry "GRE"]
[SourceTitle "playchess.com"]
[Source "ChessBase"]
[SourceQuality "1"]
[TimeControl "40/5400+30:1800+30"]

1. e4 {[%emt 0:00:00]} c5 {[%emt 0:01:59]} 2. Nc3 {[%emt 0:00:00]} a6 {[%emt 0:00:22]} 3. d4 {[%emt 0:00:53]} cxd4 {[%emt 0:06:35]} 4. Qxd4 {[%emt 0:00:05]} Nc6 {[%emt 0:02:02]} 5. Qd2 {[%emt 0:00:11]} b5 {[%emt 0:04:27]} 6. b3 {[%emt 0:00:46]} g6 {[%emt 0:01:25]} 7. Bb2 {[%emt 0:00:09]} Bg7 {[%emt 0:00:28]} 8. Nge2 {[%emt 0:01:44]} e6 {[%emt 0:01:19]} 9. f3 {[%emt 0:19:24]} Nge7 {[%emt 0:06:28]} 10. Nd1 {[%emt 0:13:21]} Bxb2 {[%emt 0:13:57]} 11. Nxb2 {[%emt 0:00:06]} O-O {[%emt 0:02:29]} 12. O-O-O {[%emt 0:09:41]} d5 {[%emt 0:09:29]} 13. exd5 {[%emt 0:05:29]} Nxd5 {[%emt 0:01:40]} 14. Nd3 {[%emt 0:00:29]} Qe7 {[%emt 0:07:50]} 15. Kb2 {[%emt 0:01:40]} a5 {[%emt 0:06:51]} 16. Ndf4 {[%emt 0:29:11]} a4 {[%emt 0:15:04]} 17. Nxd5 {[%emt 0:04:44]} exd5 {[%emt 0:00:52]} 18. Qc3 {[%emt 0:06:52]} axb3 {[%emt 0:09:43]} 19. Qxb3 {[%emt 0:02:16]} Be6 {[%emt 0:02:56]} 20. Kc1 {[%emt 0:01:52]} Nb4 {[%emt 0:01:39]} 21. Nd4 {[%emt 0:01:02]} Qg5+ {[%emt 0:01:08]} 22. Kb1 {[%emt 0:00:14]} Nxa2 {[%emt 0:00:34]} 23. h4 {[%emt 0:00:43]} Qf4 {[%emt 0:00:51]} 24. Be2 {[%emt 0:00:31]} Rfc8 {[%emt 0:00:24]} 25. Qb2 {[%emt 0:00:36]} Nc3+ {[%emt 0:00:16]} 0-1

[Event "46th GRE-chT Premier 2018"]
[Site "Rio Achaia"]
[Date "2018.07.12"]
[Round "4"]
[White "Louka, Marianthi"]
[Black "Gioutsou, Miranta"]
[Result "1/2-1/2"]
[ECO "C42"]
[WhiteElo "1465"]
[BlackElo "1467"]
[Annotator "NA"]
[PlyCount "70"]
[EventDate "2018.07.10"]
[EventType "team-tourn"]
[EventCountry "GRE"]
[SourceTitle "playchess.com"]
[Source "ChessBase"]
[SourceQuality "1"]
[TimeControl "40/5400+30:1800+30"]

1. e4 {[%emt 0:00:00]} e5 {[%emt 0:00:00]} 2. Nf3 {[%emt 0:00:00]} Nf6 {[%emt 0:00:00]} 3. Nxe5 {[%emt 0:00:00]} d6 {[%emt 0:00:00]} 4. Nf3 {[%emt 0:00:00]} Nxe4 {[%emt 0:00:00]} 5. Nc3 {[%emt 0:00:00]} Nxc3 {[%emt 0:00:05]} 6. dxc3 {[%emt 0:00:02]} Be7 {[%emt 0:00:10]} 7. Be3 {[%emt 0:00:05]} Nc6 {[%emt 0:00:09]} 8. Qd2 {[%emt 0:00:20]} Be6 {[%emt 0:00:13]} 9. Bd3 {[%emt 0:01:18]} Qd7 {[%emt 0:00:15]} 10. O-O-O {[%emt 0:00:28]} Bf6 {[%emt 0:00:28]} 11. Kb1 {[%emt 0:01:14]} O-O-O {[%emt 0:00:26]} 12. Bb5 {[%emt 0:01:14]} Kb8 {[%emt 0:05:14]} 13. Nd4 {[%emt 0:23:10]} Bxd4 {[%emt 0:02:41]} 14. Bxd4 {[%emt 0:00:07]} f6 {[%emt 0:02:15]} 15. Rhe1 {[%emt 0:01:50]} Rhe8 {[%emt 0:07:51]} 16. h3 {[%emt 0:03:47]} Bf7 {[%emt 0:20:07]} 17. Qf4 {[%emt 0:11:10]} Rxe1 {[%emt 0:08:38]} 18. Rxe1 {[%emt 0:00:08]} Re8 {[%emt 0:07:14]} 19. Be3 {[%emt 0:05:58]} a6 {[%emt 0:16:05]} 20. Bxc6 {[%emt 0:13:37]} Qxc6 {[%emt 0:00:17]} 21. Qd4 {[%emt 0:00:10]} b6 {[%emt 0:10:12]} 22. Rg1 {[%emt 0:16:59]} Qc4 {[%emt 0:03:10]} 23. Qxc4 {[%emt 0:05:42]} Bxc4 {[%emt 0:00:06]} 24. Rd1 {[%emt 0:00:40]} Bf7 {[%emt 0:02:26]} 25. b3 {[%emt 0:01:17]} Re4 {[%emt 0:01:52]} 26. c4 {[%emt 0:02:02]} f5 {[%emt 0:03:29]} 27. g3 {[%emt 0:00:37]} g6 28. Kb2 {[%emt 0:01:04]} Kb7 {[%emt 0:01:24]} 29. Kc3 {[%emt 0:00:38]} Kc6 {[%emt 0:00:44]} 30. Rd4 {[%emt 0:02:15]} Rxd4 {[%emt 0:01:23]} 31. Bxd4 {[%emt 0:00:25]} b5 {[%emt 0:03:00]} 32. cxb5+ {[%emt 0:01:17]} Kxb5 {[%emt 0:01:17]} 33. a4+ {[%emt 0:00:22]} Kc6 {[%emt 0:00:55]} 34. Kb4 {[%emt 0:01:16]} Kb7 {[%emt 0:00:22]} 35. Ka5 {[%emt 0:02:36]} Bd5 {[%emt 0:00:52]} 1/2-1/2

[Event "46th GRE-chT Premier 2018"]
[Site "Rio Achaia"]
[Date "2018.07.12"]
[Round "4"]
[White "Kontopanagos, Ioannis"]
[Black "Gkikas, Ioannis"]
[Result "0-1"]
[ECO "E45"]
[WhiteElo "1440"]
[BlackElo "1553"]
[Annotator "NA"]
[PlyCount "98"]
[EventDate "2018.07.10"]
[EventType "team-tourn"]
[EventCountry "GRE"]
[SourceTitle "playchess.com"]
[Source "ChessBase"]
[SourceQuality "1"]
[TimeControl "40/5400+30:1800+30"]

1. d4 {[%emt 0:00:00]} Nf6 {[%emt 0:00:00]} 2. c4 {[%emt 0:00:00]} e6 {[%emt 0:00:00]} 3. Nc3 {[%emt 0:00:00]} Bb4 {[%emt 0:00:00]} 4. e3 {[%emt 0:00:00]} b6 {[%emt 0:00:21]} 5. Nge2 {[%emt 0:00:07]} Ba6 {[%emt 0:00:28]} 6. a3 {[%emt 0:00:36]} Bxc3+ {[%emt 0:04:11]} 7. Nxc3 {[%emt 0:00:08]} O-O {[%emt 0:02:51]} 8. Bd3 {[%emt 0:00:58]} Nc6 {[%emt 0:01:02]} 9. b4 {[%emt 0:02:15]} Bb7 {[%emt 0:02:15]} 10. O-O {[%emt 0:02:32]} d5 {[%emt 0:04:22]} 11. cxd5 {[%emt 0:12:30]} Nxd5 {[%emt 0:01:28]} 12. Bb2 {[%emt 0:04:55]} Qg5 {[%emt 0:05:09]} 13. Ne4 {[%emt 0:05:44]} Qh6 {[%emt 0:01:20]} 14. Nd2 {[%emt 0:16:27]} Nxe3 {[%emt 0:12:51]} 15. Bxh7+ {[%emt 0:05:31]} Kxh7 {[%emt 0:00:45]} 16. fxe3 {[%emt 0:00:39]} Qxe3+ {[%emt 0:03:54]} 17. Kh1 {[%emt 0:02:24]} Ne7 {[%emt 0:02:03]} 18. Nf3 {[%emt 0:03:22]} Kg8 {[%emt 0:07:01]} 19. Qc2 {[%emt 0:09:56]} Rac8 {[%emt 0:07:01]} 20. Bc1 {[%emt 0:01:34]} Qe4 {[%emt 0:01:20]} 21. Qf2 {[%emt 0:01:46]} Nf5 {[%emt 0:03:47]} 22. Ra2 {[%emt 0:05:14]} Qg4 {[%emt 0:08:04]} 23. Rd2 {[%emt 0:07:12]} Bxf3 {[%emt 0:04:55]} 24. gxf3 {[%emt 0:02:46]} Qh4 {[%emt 0:00:20]} 25. Qg1 {[%emt 0:00:48]} Rfd8 {[%emt 0:01:24]} 26. Rg2 {[%emt 0:02:10]} Qxd4 {[%emt 0:03:40]} 27. Rff2 {[%emt 0:04:26]} e5 {[%emt 0:10:40]} 28. Bb2 {[%emt 0:02:22]} Qd5 {[%emt 0:03:38]} 29. Rg5 {[%emt 0:01:48]} Qe6 {[%emt 0:03:21]} 30. Rfg2 {[%emt 0:02:12]} f6 {[%emt 0:02:18]} 31. Rh5 {[%emt 0:01:14]} Rd7 {[%emt 0:01:13]} 32. Qb1 {[%emt 0:00:44]} Rcd8 {[%emt 0:01:07]} 33. Rg1 {[%emt 0:01:14]} Rd3 {[%emt 0:00:27]} 34. Qf1 {[%emt 0:01:08]} Kf7 {[%emt 0:02:31]} 35. Qg2 {[%emt 0:01:58]} g5 {[%emt 0:01:02]} 36. Bc1 {[%emt 0:00:45]} Rd1 {[%emt 0:00:32]} 37. Bb2 {[%emt 0:00:30]} Ne3 {[%emt 0:00:28]} 38. Qe2 {[%emt 0:00:29]} Rxg1+ {[%emt 0:00:21]} 39. Kxg1 {[%emt 0:00:06]} Qb3 {[%emt 0:00:31]} 40. h3 {[%emt 0:00:00]} Qd1+ {[%emt 0:00:00]} 41. Qxd1 {[%emt 0:02:10]} Nxd1 {[%emt 0:02:10]} 42. Rh7+ {[%emt 0:01:32]} Kg6 {[%emt 0:00:08]} 43. Rxc7 {[%emt 0:00:06]} Nxb2 {[%emt 0:00:05]} 44. Rxa7 {[%emt 0:00:14]} Rd3 {[%emt 0:00:33]} 45. Kg2 {[%emt 0:02:28]} Nc4 {[%emt 0:01:05]} 46. a4 {[%emt 0:00:31]} Rb3 {[%emt 0:00:24]} 47. b5 {[%emt 0:00:35]} Rb2+ {[%emt 0:01:18]} 48. Kg1 {[%emt 0:01:12]} Kf5 {[%emt 0:00:20]} 49. Rc7 {[%emt 0:00:27]} Rb4 {[%emt 0:00:44]} 0-1

[Event "46th GRE-chT Premier 2018"]
[Site "Rio Achaia"]
[Date "2018.07.12"]
[Round "4"]
[White "Kotsoglou, Evi"]
[Black "Petraki, Evaggelia"]
[Result "0-1"]
[ECO "B32"]
[WhiteElo "1424"]
[BlackElo "1814"]
[Annotator "NA"]
[PlyCount "128"]
[EventDate "2018.07.10"]
[EventType "team-tourn"]
[EventCountry "GRE"]
[SourceTitle "playchess.com"]
[Source "ChessBase"]
[SourceQuality "1"]
[TimeControl "40/5400+30:1800+30"]

1. e4 {[%emt 0:00:00]} c5 {[%emt 0:00:00]} 2. Nf3 {[%emt 0:00:00]} Nc6 {[%emt 0:00:00]} 3. d4 {[%emt 0:00:42]} cxd4 {[%emt 0:00:00]} 4. Nxd4 {[%emt 0:00:05]} g6 {[%emt 0:00:00]} 5. g3 {[%emt 0:04:16]} Bg7 {[%emt 0:00:23]} 6. Ne2 {[%emt 0:03:15]} Nf6 {[%emt 0:00:58]} 7. Bg2 {[%emt 0:01:03]} d6 {[%emt 0:04:03]} 8. h3 {[%emt 0:02:36]} Bd7 {[%emt 0:01:45]} 9. Nbc3 {[%emt 0:01:53]} O-O {[%emt 0:01:03]} 10. O-O {[%emt 0:01:01]} Na5 {[%emt 0:04:23]} 11. Rb1 {[%emt 0:30:51]} Nc4 {[%emt 0:05:42]} 12. b3 {[%emt 0:01:09]} Na5 {[%emt 0:04:22]} 13. Nf4 {[%emt 0:07:48]} Qc8 {[%emt 0:09:59]} 14. Ncd5 {[%emt 0:03:44]} Nxd5 {[%emt 0:00:20]} 15. Nxd5 {[%emt 0:01:21]} Nc6 {[%emt 0:04:16]} 16. Kh2 {[%emt 0:00:16]} Re8 {[%emt 0:04:53]} 17. Bb2 {[%emt 0:08:32]} Bxb2 {[%emt 0:04:13]} 18. Rxb2 {[%emt 0:00:06]} Be6 {[%emt 0:02:11]} 19. Ne3 {[%emt 0:01:38]} Qc7 {[%emt 0:02:46]} 20. f4 {[%emt 0:03:40]} Qb6 {[%emt 0:00:29]} 21. Qd2 {[%emt 0:04:53]} Qd4 {[%emt 0:03:04]} 22. Qxd4 {[%emt 0:02:07]} Nxd4 {[%emt 0:00:04]} 23. Rd1 {[%emt 0:01:14]} Nc6 {[%emt 0:02:38]} 24. f5 {[%emt 0:07:07]} Bd7 {[%emt 0:01:35]} 25. Nd5 {[%emt 0:00:28]} Rac8 {[%emt 0:03:12]} 26. g4 {[%emt 0:05:09]} Kg7 {[%emt 0:01:11]} 27. h4 {[%emt 0:02:10]} h5 {[%emt 0:04:55]} 28. gxh5 {[%emt 0:03:19]} gxf5 {[%emt 0:01:19]} 29. Nf4 {[%emt 0:02:03]} Rg8 {[%emt 0:06:51]} 30. Rg1 {[%emt 0:01:16]} Kh6 {[%emt 0:01:26]} 31. Bf3 {[%emt 0:01:02]} Rxg1 {[%emt 0:00:25]} 32. Kxg1 {[%emt 0:00:01]} Rg8+ {[%emt 0:11:56]} 33. Kf2 {[%emt 0:00:13]} fxe4 {[%emt 0:00:10]} 34. Bxe4 {[%emt 0:00:41]} Rg4 {[%emt 0:00:40]} 35. Ke3 {[%emt 0:00:34]} Rxh4 {[%emt 0:00:54]} 36. c4 {[%emt 0:00:58]} e5 {[%emt 0:02:54]} 37. Nd5 {[%emt 0:00:31]} Rh3+ {[%emt 0:00:12]} 38. Kd2 {[%emt 0:00:30]} Rh2+ {[%emt 0:04:52]} 39. Kc1 {[%emt 0:00:15]} Rxb2 {[%emt 0:00:06]} 40. Kxb2 {[%emt 0:00:00]} Bg4 {[%emt 0:00:00]} 41. Nf6 {[%emt 0:05:38]} Bxh5 {[%emt 0:00:23]} 42. Bd5 {[%emt 0:00:28]} Ne7 {[%emt 0:13:30]} 43. Bxb7 {[%emt 0:02:53]} Kg6 {[%emt 0:00:31]} 44. Ne4 {[%emt 0:04:19]} Bf3 {[%emt 0:02:47]} 45. Nxd6 {[%emt 0:03:00]} Bxb7 {[%emt 0:00:03]} 46. Nxb7 {[%emt 0:00:07]} Nc6 {[%emt 0:00:58]} 47. Kc3 {[%emt 0:02:34]} f5 {[%emt 0:01:06]} 48. Nd6 {[%emt 0:03:59]} Kf6 {[%emt 0:02:36]} 49. Kd2 {[%emt 0:02:26]} Ke6 {[%emt 0:00:34]} 50. Nb5 {[%emt 0:00:41]} e4 {[%emt 0:02:36]} 51. Nc3 {[%emt 0:03:06]} Ke5 {[%emt 0:00:25]} 52. Nd5 {[%emt 0:05:25]} f4 {[%emt 0:06:36]} 53. b4 {[%emt 0:02:10]} Nd4 {[%emt 0:03:44]} 54. a4 {[%emt 0:00:43]} Ne6 {[%emt 0:07:02]} 55. Ke2 {[%emt 0:00:55]} Kd4 {[%emt 0:00:30]} 56. Nf6 {[%emt 0:00:33]} Kxc4 {[%emt 0:02:16]} 57. Nxe4 {[%emt 0:00:26]} Kxb4 {[%emt 0:00:03]} 58. Kd2 {[%emt 0:00:34]} Kxa4 {[%emt 0:00:09]} 59. Kc3 {[%emt 0:00:25]} Kb5 {[%emt 0:00:53]} 60. Nd2 {[%emt 0:00:32]} Ng5 {[%emt 0:00:38]} 61. Kd3 {[%emt 0:00:20]} f3 {[%emt 0:00:18]} 62. Ke3 {[%emt 0:00:21]} Kb4 {[%emt 0:00:29]} 63. Kf2 {[%emt 0:00:48]} a5 {[%emt 0:00:48]} 64. Nf1 {[%emt 0:00:33]} a4 {[%emt 0:00:32]} 0-1

[Event "46th GRE-chT Premier 2018"]
[Site "Rio Achaia"]
[Date "2018.07.12"]
[Round "4"]
[White "Papadopoulos, Panteleimon"]
[Black "Laspas, Panagiotis"]
[Result "0-1"]
[ECO "B01"]
[WhiteElo "1422"]
[BlackElo "1917"]
[Annotator "NA"]
[PlyCount "58"]
[EventDate "2018.07.10"]
[EventType "team-tourn"]
[EventCountry "GRE"]
[SourceTitle "playchess.com"]
[Source "ChessBase"]
[SourceQuality "1"]
[TimeControl "40/5400+30:1800+30"]

1. e4 {[%emt 0:00:00]} d5 {[%emt 0:02:53]} 2. exd5 {[%emt 0:00:33]} Qxd5 {[%emt 0:00:09]} 3. Nc3 {[%emt 0:01:01]} Qd6 {[%emt 0:00:16]} 4. d4 {[%emt 0:01:53]} Nf6 {[%emt 0:00:08]} 5. Nf3 {[%emt 0:02:31]} c6 {[%emt 0:00:28]} 6. Be2 {[%emt 0:05:04]} Bf5 {[%emt 0:02:00]} 7. O-O {[%emt 0:05:22]} h6 {[%emt 0:02:28]} 8. Re1 {[%emt 0:09:07]} e6 {[%emt 0:00:33]} 9. a4 {[%emt 0:03:34]} Be7 {[%emt 0:00:38]} 10. Bc4 {[%emt 0:03:19]} O-O {[%emt 0:02:43]} 11. h3 {[%emt 0:02:58]} Nbd7 {[%emt 0:02:07]} 12. Be3 {[%emt 0:03:46]} Nd5 {[%emt 0:20:13]} 13. Nxd5 {[%emt 0:05:26]} cxd5 {[%emt 0:01:40]} 14. Bd3 {[%emt 0:03:03]} Bxd3 {[%emt 0:02:59]} 15. Qxd3 {[%emt 0:00:48]} Rac8 {[%emt 0:01:09]} 16. Rec1 {[%emt 0:06:46]} Rc6 {[%emt 0:06:36]} 17. b3 {[%emt 0:04:13]} Rfc8 {[%emt 0:04:00]} 18. Ra2 {[%emt 0:05:08]} Bf6 {[%emt 0:03:31]} 19. Rd1 {[%emt 0:05:08]} Qc7 {[%emt 0:05:25]} 20. Rc1 {[%emt 0:01:59]} Qd6 {[%emt 0:07:03]} 21. Rd1 {[%emt 0:01:34]} Rc3 {[%emt 0:01:28]} 22. Qd2 {[%emt 0:03:13]} Qb6 {[%emt 0:03:14]} 23. Rc1 {[%emt 0:01:44]} Nb8 {[%emt 0:01:32]} 24. Qe2 {[%emt 0:03:36]} Nc6 {[%emt 0:10:21]} 25. Bd2 {[%emt 0:02:26]} Nb4 {[%emt 0:01:05]} 26. Rb2 {[%emt 0:01:34]} Rxc2 {[%emt 0:01:12]} 27. Rbxc2 {[%emt 0:00:56]} Rxc2 {[%emt 0:00:08]} 28. Rxc2 {[%emt 0:01:53]} Nxc2 {[%emt 0:00:05]} 29. Ba5 {[%emt 0:03:01]} Qxb3 {[%emt 0:00:55]} 0-1

[Event "46th GRE-chT Premier 2018"]
[Site "Rio Achaia"]
[Date "2018.07.12"]
[Round "4"]
[White "Basinas, Konstantinos"]
[Black "Kafantaris, Pavlos"]
[Result "1/2-1/2"]
[ECO "D30"]
[WhiteElo "1383"]
[BlackElo "1380"]
[Annotator "NA"]
[PlyCount "56"]
[EventDate "2018.07.10"]
[EventType "team-tourn"]
[EventCountry "GRE"]
[SourceTitle "playchess.com"]
[Source "ChessBase"]
[SourceQuality "1"]
[TimeControl "40/5400+30:1800+30"]

1. d4 {[%emt 0:00:00]} d5 {[%emt 0:00:09]} 2. c4 {[%emt 0:00:00]} e6 {[%emt 0:00:06]} 3. Nf3 {[%emt 0:00:00]} Nf6 {[%emt 0:00:23]} 4. g3 {[%emt 0:00:00]} Bb4+ {[%emt 0:00:27]} 5. Bd2 {[%emt 0:00:08]} Be7 {[%emt 0:00:16]} 6. Bg2 {[%emt 0:00:21]} O-O {[%emt 0:00:37]} 7. O-O {[%emt 0:00:07]} c6 {[%emt 0:01:06]} 8. Qc2 {[%emt 0:00:23]} b6 {[%emt 0:02:05]} 9. b3 {[%emt 0:01:06]} a5 {[%emt 0:04:43]} 10. Bc3 {[%emt 0:03:53]} Ba6 {[%emt 0:00:55]} 11. Bb2 {[%emt 0:01:59]} b5 {[%emt 0:04:35]} 12. Nbd2 {[%emt 0:07:25]} b4 {[%emt 0:02:26]} 13. Rac1 {[%emt 0:06:46]} Nbd7 {[%emt 0:06:11]} 14. Rfe1 {[%emt 0:05:09]} Qb6 {[%emt 0:14:58]} 15. e4 {[%emt 0:04:30]} dxe4 {[%emt 0:08:49]} 16. Nxe4 {[%emt 0:01:04]} Nxe4 {[%emt 0:00:15]} 17. Qxe4 {[%emt 0:00:31]} Nf6 {[%emt 0:06:50]} 18. Qb1 {[%emt 0:03:56]} Rfe8 {[%emt 0:02:44]} 19. Rcd1 {[%emt 0:03:38]} Rad8 {[%emt 0:00:35]} 20. Rd2 {[%emt 0:08:24]} c5 {[%emt 0:06:20]} 21. Red1 {[%emt 0:00:57]} cxd4 {[%emt 0:06:49]} 22. Bxd4 {[%emt 0:02:11]} Qc7 {[%emt 0:00:13]} 23. Be5 {[%emt 0:16:02]} Qb6 {[%emt 0:07:43]} 24. Bd4 {[%emt 0:15:04]} Qc7 {[%emt 0:00:36]} 25. Be5 {[%emt 0:00:48]} Qb6 {[%emt 0:00:15]} 26. Bd4 {[%emt 0:01:18]} Qc7 {[%emt 0:00:04]} 27. Be5 {[%emt 0:00:59]} Qb6 {[%emt 0:00:14]} 28. Bd4 {[%emt 0:01:13]} Qc7 {[%emt 0:00:22]} 1/2-1/2

[Event "46th GRE-chT Premier 2018"]
[Site "Rio Achaia"]
[Date "2018.07.12"]
[Round "4"]
[White "Apostolakaki, Evangelia"]
[Black "Patriki, Alexandra"]
[Result "0-1"]
[ECO "A46"]
[WhiteElo "1376"]
[BlackElo "1355"]
[Annotator "NA"]
[PlyCount "70"]
[EventDate "2018.07.10"]
[EventType "team-tourn"]
[EventCountry "GRE"]
[SourceTitle "playchess.com"]
[Source "ChessBase"]
[SourceQuality "1"]
[TimeControl "40/5400+30:1800+30"]

1. d4 {[%emt 0:00:00]} Nf6 {[%emt 0:00:00]} 2. Nf3 {[%emt 0:00:00]} c5 {[%emt 0:00:00]} 3. e3 {[%emt 0:00:00]} e6 {[%emt 0:00:00]} 4. c4 {[%emt 0:00:17]} d5 {[%emt 0:00:20]} 5. a3 {[%emt 0:00:06]} Nc6 {[%emt 0:03:13]} 6. dxc5 {[%emt 0:00:26]} Bxc5 {[%emt 0:00:24]} 7. b4 {[%emt 0:00:06]} Bb6 {[%emt 0:01:07]} 8. Bb2 {[%emt 0:00:28]} O-O {[%emt 0:05:31]} 9. Nbd2 {[%emt 0:01:14]} Bc7 {[%emt 0:01:48]} 10. Be2 {[%emt 0:01:41]} dxc4 {[%emt 0:01:06]} 11. Nxc4 {[%emt 0:01:16]} Qe7 {[%emt 0:00:41]} 12. Qc2 {[%emt 0:01:37]} b6 {[%emt 0:10:45]} 13. O-O {[%emt 0:04:43]} Bb7 {[%emt 0:01:27]} 14. Bd3 {[%emt 0:03:56]} h6 {[%emt 0:09:07]} 15. Rfd1 {[%emt 0:04:08]} Rfd8 {[%emt 0:06:34]} 16. b5 {[%emt 0:05:40]} Na5 {[%emt 0:05:25]} 17. Nxa5 {[%emt 0:02:06]} bxa5 {[%emt 0:00:25]} 18. Bxf6 {[%emt 0:01:10]} gxf6 {[%emt 0:00:10]} 19. Qe2 {[%emt 0:04:06]} Kh8 {[%emt 0:15:46]} 20. Nd4 {[%emt 0:03:18]} Rg8 {[%emt 0:19:40]} 21. Nc6 {[%emt 0:05:58]} Qf8 {[%emt 0:00:53]} 22. Be4 {[%emt 0:01:31]} a6 {[%emt 0:12:53]} 23. a4 {[%emt 0:02:48]} axb5 {[%emt 0:01:26]} 24. axb5 {[%emt 0:00:07]} Bd6 {[%emt 0:01:36]} 25. Bf3 {[%emt 0:06:12]} Rg5 {[%emt 0:01:35]} 26. Nxa5 {[%emt 0:04:53]} Bxf3 {[%emt 0:00:13]} 27. Qxf3 {[%emt 0:00:10]} Be5 {[%emt 0:00:16]} 28. Ra4 {[%emt 0:05:48]} Bc3 {[%emt 0:00:44]} 29. Rc4 {[%emt 0:11:26]} Bxa5 {[%emt 0:00:52]} 30. Qxf6+ {[%emt 0:00:11]} Qg7 {[%emt 0:00:20]} 31. Qxg7+ {[%emt 0:00:22]} Kxg7 {[%emt 0:00:21]} 32. Rb1 {[%emt 0:00:07]} Rb8 {[%emt 0:00:23]} 33. b6 {[%emt 0:00:31]} Rxb6 {[%emt 0:00:15]} 34. Ra1 {[%emt 0:00:33]} Rgb5 {[%emt 0:00:27]} 35. Rcc1 {[%emt 0:00:45]} Bb4 0-1

[Event "46th GRE-chT Premier 2018"]
[Site "Rio Achaia"]
[Date "2018.07.12"]
[Round "4"]
[White "Kazakos, Nikolaos"]
[Black "Gkaripis, Marios Ilias"]
[Result "0-1"]
[ECO "B18"]
[WhiteElo "1375"]
[BlackElo "1374"]
[Annotator "NA"]
[PlyCount "150"]
[EventDate "2018.07.10"]
[EventType "team-tourn"]
[EventCountry "GRE"]
[SourceTitle "playchess.com"]
[Source "ChessBase"]
[SourceQuality "1"]
[TimeControl "40/5400+30:1800+30"]

1. e4 {[%emt 0:00:00]} c6 {[%emt 0:00:00]} 2. d4 {[%emt 0:00:00]} d5 {[%emt 0:00:00]} 3. Nc3 {[%emt 0:00:04]} dxe4 {[%emt 0:00:12]} 4. Nxe4 {[%emt 0:00:06]} Bf5 {[%emt 0:00:17]} 5. Ng3 {[%emt 0:00:00]} Bg6 {[%emt 0:00:00]} 6. Nh3 {[%emt 0:01:14]} h6 {[%emt 0:02:34]} 7. Nf4 {[%emt 0:00:56]} Bh7 {[%emt 0:00:57]} 8. c3 {[%emt 0:01:29]} e6 {[%emt 0:02:03]} 9. Bd3 Bxd3 {[%emt 0:01:10]} 10. Nxd3 {[%emt 0:04:49]} Bd6 {[%emt 0:03:03]} 11. Ne4 {[%emt 0:00:22]} Bc7 {[%emt 0:02:13]} 12. Qf3 {[%emt 0:02:36]} Nd7 {[%emt 0:04:08]} 13. Bf4 Ngf6 {[%emt 0:06:17]} 14. Nd6+ {[%emt 0:01:03]} Bxd6 {[%emt 0:01:28]} 15. Bxd6 {[%emt 0:00:06]} Nb6 {[%emt 0:01:45]} 16. Bg3 {[%emt 0:03:30]} O-O {[%emt 0:03:45]} 17. O-O {[%emt 0:00:32]} Nc4 {[%emt 0:02:59]} 18. Rad1 {[%emt 0:00:34]} Qd5 {[%emt 0:07:45]} 19. Qxd5 {[%emt 0:00:56]} Nxd5 20. Rfe1 Rfd8 {[%emt 0:07:16]} 21. Re2 {[%emt 0:03:37]} a5 22. h3 {[%emt 0:02:49]} a4 {[%emt 0:06:33]} 23. Nf4 {[%emt 0:01:07]} Nxf4 {[%emt 0:05:55]} 24. Bxf4 {[%emt 0:00:06]} Rd7 {[%emt 0:01:21]} 25. Rde1 {[%emt 0:04:36]} Ra6 {[%emt 0:02:55]} 26. Be3 {[%emt 0:03:49]} Nxe3 {[%emt 0:06:27]} 27. fxe3 {[%emt 0:00:16]} Rb6 {[%emt 0:00:36]} 28. Kf2 {[%emt 0:01:41]} Rd5 {[%emt 0:01:51]} 29. Kf3 {[%emt 0:01:30]} Rdb5 {[%emt 0:02:39]} 30. Rb1 {[%emt 0:00:48]} Kh7 {[%emt 0:00:46]} 31. Ke4 {[%emt 0:00:14]} Kg6 {[%emt 0:00:39]} 32. Rf2 {[%emt 0:00:12]} f6 {[%emt 0:01:58]} 33. Kd3 {[%emt 0:00:44]} Rf5 {[%emt 0:03:26]} 34. Rxf5 {[%emt 0:01:01]} Kxf5 {[%emt 0:01:16]} 35. Rf1+ {[%emt 0:00:07]} Kg5 {[%emt 0:00:43]} 36. Kc2 {[%emt 0:00:09]} Rb5 {[%emt 0:05:20]} 37. Rf4 {[%emt 0:00:46]} Kg6 {[%emt 0:01:14]} 38. c4 {[%emt 0:02:39]} Rg5 {[%emt 0:01:41]} 39. Rf2 {[%emt 0:00:00]} Rg3 {[%emt 0:00:00]} 40. Kd3 {[%emt 0:00:00]} f5 {[%emt 0:00:00]} 41. Ke2 {[%emt 0:04:14]} b6 {[%emt 0:13:37]} 42. Kd2 {[%emt 0:00:46]} Kg5 {[%emt 0:02:10]} 43. Ke2 {[%emt 0:00:28]} Kg6 {[%emt 0:00:42]} 44. Kd2 {[%emt 0:00:08]} Kg5 {[%emt 0:00:46]} 45. Ke2 {[%emt 0:00:29]} Kh5 {[%emt 0:02:56]} 46. Kd2 {[%emt 0:00:25]} g5 {[%emt 0:01:40]} 47. Re2 {[%emt 0:01:31]} g4 {[%emt 0:04:28]} 48. hxg4+ {[%emt 0:00:14]} Rxg4 {[%emt 0:02:15]} 49. Ke1 {[%emt 0:00:22]} Re4 {[%emt 0:01:54]} 50. Kf2 {[%emt 0:04:13]} Kg4 {[%emt 0:02:47]} 51. b3 {[%emt 0:02:15]} axb3 {[%emt 0:00:50]} 52. axb3 {[%emt 0:00:06]} f4 {[%emt 0:02:14]} 53. exf4 {[%emt 0:01:03]} Rxe2+ {[%emt 0:03:12]} 54. Kxe2 {[%emt 0:00:07]} Kxf4 {[%emt 0:00:13]} 55. Kd3 {[%emt 0:00:02]} h5 {[%emt 0:01:31]} 56. c5 {[%emt 0:01:29]} b5 {[%emt 0:01:37]} 57. Kc3 {[%emt 0:03:55]} Ke3 {[%emt 0:03:13]} 58. g3 {[%emt 0:00:30]} Ke4 {[%emt 0:00:57]} 59. Kb4 {[%emt 0:01:24]} Kxd4 {[%emt 0:00:32]} 60. Ka5 {[%emt 0:00:05]} Kxc5 {[%emt 0:00:32]} 61. b4+ {[%emt 0:00:09]} Kd5 {[%emt 0:00:27]} 62. Kb6 {[%emt 0:00:14]} e5 {[%emt 0:00:09]} 63. Kc7 {[%emt 0:00:09]} e4 {[%emt 0:00:17]} 64. Kd7 {[%emt 0:00:02]} e3 {[%emt 0:00:11]} 65. Ke7 {[%emt 0:00:05]} e2 {[%emt 0:00:15]} 66. Kd7 {[%emt 0:00:06]} e1=Q {[%emt 0:00:18]} 67. g4 {[%emt 0:00:04]} hxg4 {[%emt 0:00:19]} 68. Kc7 {[%emt 0:00:17]} c5 {[%emt 0:00:43]} 69. bxc5 {[%emt 0:00:09]} Kxc5 {[%emt 0:00:09]} 70. Kd7 {[%emt 0:00:06]} b4 {[%emt 0:00:12]} 71. Kc7 {[%emt 0:00:07]} b3 {[%emt 0:00:12]} 72. Kb7 {[%emt 0:00:04]} b2 {[%emt 0:00:23]} 73. Kc7 {[%emt 0:00:09]} b1=Q {[%emt 0:00:23]} 74. Kc8 {[%emt 0:00:08]} Qe8+ {[%emt 0:00:29]} 75. Kc7 {[%emt 0:00:16]} Qb6# {[%emt 0:00:07]} 0-1